[Event "*** SCC Grand Prix: Titled Tuesday Blitz"]
[Site "Chess.com"]
[Date "2020.07.21"]
[Round "1"]
[White "Fighter008"]
[Black "ExcitingTrap"]
[Result "1-0"]
[WhiteElo "2577"]
[BlackElo "2224"]
[TimeControl "180+1"]
[EndTime "10:08:00 PDT"]
[Termination "Fighter008 won by resignation"]

1. Nf3 {[%clk 0:02:51.5]} 1... Nf6 {[%clk 0:02:58.9]} 2. g3 {[%clk 0:02:49.9]}
2... g6 {[%clk 0:02:58.7]} 3. Bg2 {[%clk 0:02:47.1]} 3... Bg7 {[%clk 0:02:58.8]}
4. O-O {[%clk 0:02:46.1]} 4... O-O {[%clk 0:02:59.3]} 5. d4 {[%clk 0:02:41.4]}
5... d6 {[%clk 0:02:59.2]} 6. Re1 {[%clk 0:02:38.1]} 6... c5 {[%clk 0:02:56.5]}
7. d5 {[%clk 0:02:37.1]} 7... Bf5 {[%clk 0:02:46.1]} 8. Nh4 {[%clk 0:02:33.2]}
8... Be4 {[%clk 0:02:36.7]} 9. Nc3 {[%clk 0:02:29.7]} 9... Bxg2 {[%clk
0:02:35.3]} 10. Kxg2 {[%clk 0:02:30.3]} 10... e5 {[%clk 0:02:26.2]} 11. e4
{[%clk 0:02:26.9]} 11... Nbd7 {[%clk 0:02:19.1]} 12. a4 {[%clk 0:02:23.2]} 12...
b6 {[%clk 0:02:17.9]} 13. Nf3 {[%clk 0:02:20.2]} 13... a6 {[%clk 0:02:15.4]} 14.
Nd2 {[%clk 0:02:16.4]} 14... Qc7 {[%clk 0:01:57.8]} 15. Nc4 {[%clk 0:02:10.4]}
15... Rfb8 {[%clk 0:01:57.6]} 16. Bd2 {[%clk 0:02:03.5]} 16... Nf8 {[%clk
0:01:52.6]} 17. f4 {[%clk 0:01:55.8]} 17... N6d7 {[%clk 0:01:42.7]} 18. Qf3
{[%clk 0:01:52.5]} 18... Re8 {[%clk 0:01:27.6]} 19. Rf1 {[%clk 0:01:47.9]} 19...
exf4 {[%clk 0:01:25.2]} 20. gxf4 {[%clk 0:01:48]} 20... Rab8 {[%clk 0:01:24]}
21. Na3 {[%clk 0:01:32.8]} 21... Nf6 {[%clk 0:01:14.7]} 22. Rae1 {[%clk
0:01:31.5]} 22... N8d7 {[%clk 0:01:10]} 23. Qd3 {[%clk 0:01:26.3]} 23... Ra8
{[%clk 0:01:02.6]} 24. Nc4 {[%clk 0:01:26.2]} 24... Rab8 {[%clk 0:01:00.2]} 25.
Ne3 {[%clk 0:01:20.2]} 25... b5 {[%clk 0:00:55.3]} 26. axb5 {[%clk 0:01:16.8]}
26... axb5 {[%clk 0:00:54.7]} 27. Nxb5 {[%clk 0:01:16.2]} 27... Qb6 {[%clk
0:00:53.8]} 28. Nc3 {[%clk 0:01:13.3]} 28... Qxb2 {[%clk 0:00:50.6]} 29. Nc4
{[%clk 0:01:13.1]} 29... Qb4 {[%clk 0:00:44.5]} 30. Nxd6 {[%clk 0:01:09.6]}
30... Re7 {[%clk 0:00:34.9]} 31. e5 {[%clk 0:01:08.3]} 31... Nh5 {[%clk
0:00:33.6]} 32. Nc4 {[%clk 0:00:59.8]} 32... Nb6 {[%clk 0:00:31.6]} 33. Nxb6
{[%clk 0:00:55.4]} 33... Qxb6 {[%clk 0:00:31]} 34. d6 {[%clk 0:00:55.3]} 34...
Ree8 {[%clk 0:00:28.5]} 35. Nd5 {[%clk 0:00:55.1]} 35... Qc6 {[%clk 0:00:28]}
36. c4 {[%clk 0:00:51.9]} 36... Rb2 {[%clk 0:00:25.8]} 37. Re2 {[%clk
0:00:51.9]} 37... Kh8 {[%clk 0:00:24.8]} 38. Bc3 {[%clk 0:00:44.9]} 38... Rxe2+
{[%clk 0:00:23.9]} 39. Qxe2 {[%clk 0:00:45.8]} 39... Bh6 {[%clk 0:00:23.2]} 40.
e6+ {[%clk 0:00:39.3]} 40... Kg8 {[%clk 0:00:20.7]} 41. d7 {[%clk 0:00:35]}
41... Ra8 {[%clk 0:00:15.6]} 42. Qe4 {[%clk 0:00:19]} 42... Ra2+ {[%clk
0:00:09.9]} 43. Rf2 {[%clk 0:00:17.5]} 43... Rxf2+ {[%clk 0:00:09]} 44. Kxf2
{[%clk 0:00:17.6]} 44... Bf8 {[%clk 0:00:05.3]} 45. d8=Q {[%clk 0:00:15.1]}
45... fxe6 {[%clk 0:00:05.4]} 46. Ne7+ {[%clk 0:00:14]} 1-0

[Event "*** SCC Grand Prix: Titled Tuesday Blitz"]
[Site "Chess.com"]
[Date "2020.07.21"]
[Round "1"]
[White "Joseacorrea"]
[Black "LisikValera"]
[Result "0-1"]
[WhiteElo "1965"]
[BlackElo "2483"]
[TimeControl "180+1"]
[EndTime "10:08:04 PDT"]
[Termination "LisikValera won on time"]

1. c4 {[%clk 0:02:59.1]} 1... c6 {[%clk 0:02:59.8]} 2. Nc3 {[%clk 0:02:59.3]}
2... d5 {[%clk 0:03:00.6]} 3. cxd5 {[%clk 0:03:00.2]} 3... cxd5 {[%clk
0:03:00.2]} 4. d4 {[%clk 0:03:01.1]} 4... Nf6 {[%clk 0:03:00.7]} 5. Nf3 {[%clk
0:03:01.7]} 5... Nc6 {[%clk 0:03:01.2]} 6. Bf4 {[%clk 0:03:01.4]} 6... e6 {[%clk
0:03:01.7]} 7. e3 {[%clk 0:03:01.7]} 7... Be7 {[%clk 0:03:02.2]} 8. Bd3 {[%clk
0:03:00.4]} 8... O-O {[%clk 0:03:02.7]} 9. Rc1 {[%clk 0:02:59.6]} 9... Bd7
{[%clk 0:03:00.5]} 10. O-O {[%clk 0:02:58.5]} 10... Nh5 {[%clk 0:03:00.5]} 11.
Bg3 {[%clk 0:02:56.7]} 11... Nxg3 {[%clk 0:03:00.3]} 12. hxg3 {[%clk 0:02:56.8]}
12... Rc8 {[%clk 0:02:58.6]} 13. Bb1 {[%clk 0:02:56]} 13... a6 {[%clk
0:02:57.1]} 14. Qd3 {[%clk 0:02:55.5]} 14... g6 {[%clk 0:02:57.1]} 15. Rfd1
{[%clk 0:02:50.8]} 15... b5 {[%clk 0:02:51.9]} 16. a3 {[%clk 0:02:49.7]} 16...
Na5 {[%clk 0:02:46.8]} 17. Ne5 {[%clk 0:02:43.5]} 17... Nc4 {[%clk 0:02:45]} 18.
Nxc4 {[%clk 0:02:31.9]} 18... bxc4 {[%clk 0:02:45.1]} 19. Qc2 {[%clk 0:02:27.5]}
19... f5 {[%clk 0:02:40.1]} 20. Kf1 {[%clk 0:02:20.7]} 20... Rb8 {[%clk
0:02:38.8]} 21. Ke2 {[%clk 0:02:17.5]} 21... Qb6 {[%clk 0:02:38.3]} 22. Rd2
{[%clk 0:02:09.1]} 22... Rb7 {[%clk 0:02:36.3]} 23. Rh1 {[%clk 0:02:07.6]} 23...
Rfb8 {[%clk 0:02:25.4]} 24. Qc1 {[%clk 0:01:45.1]} 24... Bf6 {[%clk 0:02:14.4]}
25. Qg1 {[%clk 0:01:42.1]} 25... Qd8 {[%clk 0:02:11.5]} 26. Qh2 {[%clk
0:01:32.9]} 26... Qe7 {[%clk 0:02:08.7]} 27. f3 {[%clk 0:01:21.5]} 27... Rxb2
{[%clk 0:02:06.2]} 28. g4 {[%clk 0:01:07.2]} 28... Rxd2+ {[%clk 0:02:04.3]} 29.
Kxd2 {[%clk 0:01:07.4]} 29... Rb3 {[%clk 0:01:45.8]} 30. Bc2 {[%clk 0:00:52.2]}
30... Rxc3 {[%clk 0:01:44.1]} 31. Kxc3 {[%clk 0:00:49.8]} 31... Qxa3+ {[%clk
0:01:45]} 32. Kd2 {[%clk 0:00:49.8]} 32... Qb4+ {[%clk 0:01:45]} 33. Kd1 {[%clk
0:00:46]} 33... h5 {[%clk 0:01:30]} 34. gxh5 {[%clk 0:00:43]} 34... g5 {[%clk
0:01:30.2]} 35. h6 {[%clk 0:00:38.2]} 35... Ba4 {[%clk 0:01:28.8]} 36. h7+
{[%clk 0:00:37]} 36... Kh8 {[%clk 0:01:29]} 37. Bxa4 {[%clk 0:00:29]} 37...
Qxa4+ {[%clk 0:01:29]} 38. Ke1 {[%clk 0:00:28.7]} 38... Qb4+ {[%clk 0:01:11.6]}
39. Kf2 {[%clk 0:00:24.1]} 39... Qb2+ {[%clk 0:01:07]} 40. Kg3 {[%clk
0:00:19.9]} 40... Qb8+ {[%clk 0:00:52.5]} 41. Kh3 {[%clk 0:00:18.6]} 41... Qxh2+
{[%clk 0:00:43.1]} 42. Kxh2 {[%clk 0:00:17.4]} 42... f4 {[%clk 0:00:44]} 43.
exf4 {[%clk 0:00:11.5]} 43... gxf4 {[%clk 0:00:42.2]} 44. Rd1 {[%clk 0:00:10.9]}
44... Kxh7 {[%clk 0:00:40]} 45. Kh3 {[%clk 0:00:11.2]} 45... Kg6 {[%clk
0:00:31.6]} 46. Kg4 {[%clk 0:00:11.5]} 46... Bg5 {[%clk 0:00:25.1]} 47. Ra1
{[%clk 0:00:11.2]} 47... Bf6 {[%clk 0:00:18.8]} 48. Rxa6 {[%clk 0:00:09.8]}
48... Kf7 {[%clk 0:00:19]} 49. Kxf4 {[%clk 0:00:08.8]} 49... Bxd4 {[%clk
0:00:18.4]} 50. g4 {[%clk 0:00:04.7]} 50... Bg7 {[%clk 0:00:13.5]} 51. Ke3
{[%clk 0:00:04]} 51... Kf6 {[%clk 0:00:12.5]} 52. Ra7 {[%clk 0:00:02.2]} 52...
Bf8 {[%clk 0:00:10.3]} 53. Ra6 {[%clk 0:00:01.5]} 53... Bc5+ {[%clk 0:00:10]}
0-1

[Event "*** SCC Grand Prix: Titled Tuesday Blitz"]
[Site "Chess.com"]
[Date "2020.07.21"]
[Round "1"]
[White "talman67"]
[Black "mikheeva86"]
[Result "1-0"]
[WhiteElo "2478"]
[BlackElo "1909"]
[TimeControl "180+1"]
[EndTime "10:08:04 PDT"]
[Termination "talman67 won on time"]

1. e4 {[%clk 0:02:52.5]} 1... e5 {[%clk 0:02:59]} 2. Nf3 {[%clk 0:02:48.8]} 2...
Nc6 {[%clk 0:02:58.5]} 3. Bb5 {[%clk 0:02:45.9]} 3... Nd4 {[%clk 0:02:57.7]} 4.
Nxd4 {[%clk 0:02:45]} 4... exd4 {[%clk 0:02:57.5]} 5. O-O {[%clk 0:02:45.9]}
5... Bc5 {[%clk 0:02:55]} 6. c3 {[%clk 0:02:38]} 6... c6 {[%clk 0:02:45.2]} 7.
Bc4 {[%clk 0:02:37.2]} 7... d6 {[%clk 0:02:32.3]} 8. b4 {[%clk 0:02:36.2]} 8...
Bb6 {[%clk 0:02:30.6]} 9. Bb2 {[%clk 0:02:36.6]} 9... Qf6 {[%clk 0:02:29.2]} 10.
Na3 {[%clk 0:02:26.3]} 10... Ne7 {[%clk 0:02:19.3]} 11. Nc2 {[%clk 0:02:25.5]}
11... dxc3 {[%clk 0:02:15.4]} 12. Bxc3 {[%clk 0:02:26.4]} 12... Qg6 {[%clk
0:02:13.9]} 13. Qf3 {[%clk 0:02:22.1]} 13... O-O {[%clk 0:02:08.6]} 14. Ne3
{[%clk 0:02:20.1]} 14... Bxe3 {[%clk 0:01:54.4]} 15. fxe3 {[%clk 0:02:21]} 15...
Bg4 {[%clk 0:01:50.9]} 16. Qg3 {[%clk 0:02:14.1]} 16... h5 {[%clk 0:01:30]} 17.
h3 {[%clk 0:02:05.2]} 17... Be6 {[%clk 0:01:27.6]} 18. Qxg6 {[%clk 0:01:56.3]}
18... Nxg6 {[%clk 0:01:27]} 19. Be2 {[%clk 0:01:57.2]} 19... h4 {[%clk
0:01:22.3]} 20. d4 {[%clk 0:01:43.8]} 20... f5 {[%clk 0:01:18.6]} 21. exf5
{[%clk 0:01:42.1]} 21... Bxf5 {[%clk 0:01:12.9]} 22. b5 {[%clk 0:01:25.9]} 22...
Rae8 {[%clk 0:01:05.9]} 23. Bd2 {[%clk 0:01:18.5]} 23... Be4 {[%clk 0:01:01]}
24. bxc6 {[%clk 0:01:10.4]} 24... bxc6 {[%clk 0:00:59.7]} 25. Rxf8+ {[%clk
0:01:07.1]} 25... Kxf8 {[%clk 0:00:58.1]} 26. Bb4 {[%clk 0:01:07]} 26... Ke7
{[%clk 0:00:54.6]} 27. Bc4 {[%clk 0:01:02.6]} 27... Rb8 {[%clk 0:00:50.4]} 28.
Ba3 {[%clk 0:01:01.8]} 28... Kd7 {[%clk 0:00:40.2]} 29. Rf1 {[%clk 0:00:57.6]}
29... Rf8 {[%clk 0:00:38.6]} 30. Rxf8 {[%clk 0:00:47.7]} 30... Nxf8 {[%clk
0:00:37.9]} 31. Bb4 {[%clk 0:00:48.6]} 31... Ne6 {[%clk 0:00:35.9]} 32. Be2
{[%clk 0:00:41.4]} 32... Nc7 {[%clk 0:00:29.3]} 33. Bg4+ {[%clk 0:00:40.2]}
33... Ke7 {[%clk 0:00:29.3]} 34. Bf3 {[%clk 0:00:34.5]} 34... Bd5 {[%clk
0:00:19.8]} 35. e4 {[%clk 0:00:30.2]} 35... Bxa2 {[%clk 0:00:19]} 36. e5 {[%clk
0:00:30.5]} 36... c5 {[%clk 0:00:08.7]} 37. exd6+ {[%clk 0:00:27.7]} 37... Kxd6
{[%clk 0:00:08]} 38. Bxc5+ {[%clk 0:00:28.6]} 38... Ke6 {[%clk 0:00:07.6]} 39.
Bxa7 {[%clk 0:00:27.2]} 39... Nb5 {[%clk 0:00:06.7]} 40. Bc5 {[%clk 0:00:25.8]}
40... Bd5 {[%clk 0:00:06.4]} 41. Bg4+ {[%clk 0:00:23]} 41... Kf6 {[%clk
0:00:05.5]} 42. Kf2 {[%clk 0:00:23.9]} 42... g6 {[%clk 0:00:04.4]} 43. Bf3
{[%clk 0:00:22]} 43... Be6 {[%clk 0:00:01.3]} 44. d5 {[%clk 0:00:20.5]} 44...
Bd7 {[%clk 0:00:02.2]} 45. Bb6 {[%clk 0:00:14.3]} 45... Ke5 {[%clk 0:00:03.1]}
46. Bd8 {[%clk 0:00:14.2]} 46... Kd4 {[%clk 0:00:01.3]} 47. Bxh4 {[%clk
0:00:12.2]} 47... Ke5 {[%clk 0:00:02.2]} 48. Bg3+ {[%clk 0:00:11.6]} 48... Kf6
{[%clk 0:00:01.3]} 49. Bb8 {[%clk 0:00:10.1]} 1-0

[Event "*** SCC Grand Prix: Titled Tuesday Blitz"]
[Site "Chess.com"]
[Date "2020.07.21"]
[Round "1"]
[White "Maksat-94"]
[Black "Sanan_Sjugirov"]
[Result "0-1"]
[WhiteElo "2453"]
[BlackElo "2991"]
[TimeControl "180+1"]
[EndTime "10:08:05 PDT"]
[Termination "Sanan_Sjugirov won on time"]

1. e4 {[%clk 0:02:57.6]} 1... c5 {[%clk 0:02:59.5]} 2. Nf3 {[%clk 0:02:56.5]}
2... Nc6 {[%clk 0:02:59.6]} 3. Bc4 {[%clk 0:02:47.4]} 3... e6 {[%clk 0:02:52.7]}
4. O-O {[%clk 0:02:39.1]} 4... a6 {[%clk 0:02:43.4]} 5. c3 {[%clk 0:02:34.7]}
5... d5 {[%clk 0:02:19.9]} 6. exd5 {[%clk 0:02:30.3]} 6... exd5 {[%clk
0:02:20.8]} 7. Re1+ {[%clk 0:02:30.3]} 7... Be7 {[%clk 0:02:19.6]} 8. Bf1 {[%clk
0:02:27.7]} 8... Nf6 {[%clk 0:02:17.9]} 9. d4 {[%clk 0:02:27.2]} 9... O-O {[%clk
0:02:16.9]} 10. Bg5 {[%clk 0:02:21.1]} 10... Bg4 {[%clk 0:02:13.5]} 11. dxc5
{[%clk 0:02:08.3]} 11... Bxc5 {[%clk 0:02:08.4]} 12. Nbd2 {[%clk 0:02:07.8]}
12... Qb6 {[%clk 0:01:53.2]} 13. Re2 {[%clk 0:01:54.3]} 13... Ne4 {[%clk
0:01:40.8]} 14. Nxe4 {[%clk 0:01:44.6]} 14... dxe4 {[%clk 0:01:40.3]} 15. Rxe4
{[%clk 0:01:43.7]} 15... Bxf2+ {[%clk 0:01:37.1]} 16. Kh1 {[%clk 0:01:43.4]}
16... Bh5 {[%clk 0:01:24.5]} 17. Qb3 {[%clk 0:01:39.8]} 17... Qc7 {[%clk
0:01:06.3]} 18. Bf4 {[%clk 0:01:14.3]} 18... Qc8 {[%clk 0:01:04.8]} 19. Ne5
{[%clk 0:01:07]} 19... Qf5 {[%clk 0:00:39.3]} 20. Bd3 {[%clk 0:01:04.4]} 20...
Nxe5 {[%clk 0:00:36.4]} 21. Rxe5 {[%clk 0:00:43.2]} 21... Qxd3 {[%clk
0:00:20.1]} 22. Rxh5 {[%clk 0:00:41.3]} 22... Rad8 {[%clk 0:00:20.5]} 23. Rh3
{[%clk 0:00:21]} 23... Qe2 {[%clk 0:00:15.9]} 24. Rf3 {[%clk 0:00:20.7]} 24...
Rfe8 {[%clk 0:00:11.8]} 25. h3 {[%clk 0:00:19.7]} 25... Rd7 {[%clk 0:00:08.3]}
26. Kh2 {[%clk 0:00:17.1]} 26... h6 {[%clk 0:00:06.6]} 27. Bg3 {[%clk
0:00:07.6]} 27... Bxg3+ {[%clk 0:00:05.7]} 28. Rxg3 {[%clk 0:00:07.6]} 28... Qe5
{[%clk 0:00:04]} 29. Rf1 {[%clk 0:00:04.7]} 29... Re6 {[%clk 0:00:02.9]} 30. Qc4
{[%clk 0:00:03.6]} 30... Rg6 {[%clk 0:00:02.5]} 31. Qf4 {[%clk 0:00:02.1]} 31...
Qxf4 {[%clk 0:00:02.3]} 32. Rxf4 {[%clk 0:00:02.4]} 32... Rb6 {[%clk 0:00:02.7]}
33. Rb4 {[%clk 0:00:01.6]} 33... Rxb4 {[%clk 0:00:02.7]} 34. cxb4 {[%clk
0:00:02.3]} 34... Rd2 {[%clk 0:00:03.4]} 35. Rb3 {[%clk 0:00:02.3]} 35... b5
{[%clk 0:00:03.9]} 36. a3 {[%clk 0:00:01.6]} 36... f5 {[%clk 0:00:04.2]} 37. Rc3
{[%clk 0:00:02.1]} 37... Rxb2 {[%clk 0:00:03.7]} 38. Rc6 {[%clk 0:00:02.7]}
38... f4 {[%clk 0:00:01.7]} 39. Kg1 {[%clk 0:00:03.1]} 39... Rb1+ {[%clk
0:00:02.2]} 40. Kf2 {[%clk 0:00:03.2]} 40... Rb2+ {[%clk 0:00:03.1]} 41. Kf3
{[%clk 0:00:03.3]} 41... Rb3+ {[%clk 0:00:03.6]} 42. Kxf4 {[%clk 0:00:03.4]}
42... Rxa3 {[%clk 0:00:04.2]} 43. g4 {[%clk 0:00:03.4]} 43... Ra4 {[%clk
0:00:04.5]} 44. Kf5 {[%clk 0:00:02.2]} 44... Kh7 {[%clk 0:00:04.8]} 0-1

[Event "*** SCC Grand Prix: Titled Tuesday Blitz"]
[Site "Chess.com"]
[Date "2020.07.21"]
[Round "1"]
[White "Ashedu66"]
[Black "AleksanderHnydiuk"]
[Result "0-1"]
[WhiteElo "2217"]
[BlackElo "2574"]
[TimeControl "180+1"]
[EndTime "10:08:05 PDT"]
[Termination "AleksanderHnydiuk won on time"]

1. d4 {[%clk 0:02:58.9]} 1... d5 {[%clk 0:02:58]} 2. c4 {[%clk 0:02:58.5]} 2...
c6 {[%clk 0:02:57.9]} 3. Nf3 {[%clk 0:02:57.5]} 3... Nf6 {[%clk 0:02:57.5]} 4.
e3 {[%clk 0:02:57.4]} 4... a6 {[%clk 0:02:56.3]} 5. Qc2 {[%clk 0:02:54.3]} 5...
g6 {[%clk 0:02:53.1]} 6. Bd3 {[%clk 0:02:51.8]} 6... Bg7 {[%clk 0:02:52.6]} 7.
O-O {[%clk 0:02:49.4]} 7... Bg4 {[%clk 0:02:52.4]} 8. Ne5 {[%clk 0:02:48.5]}
8... Be6 {[%clk 0:02:52.4]} 9. b3 {[%clk 0:02:47]} 9... Nfd7 {[%clk 0:02:49.7]}
10. Nf3 {[%clk 0:02:31]} 10... Bg4 {[%clk 0:02:47.6]} 11. Nbd2 {[%clk
0:02:27.4]} 11... dxc4 {[%clk 0:02:27.1]} 12. bxc4 {[%clk 0:02:25.1]} 12... c5
{[%clk 0:02:27.1]} 13. Bb2 {[%clk 0:02:12.4]} 13... Nc6 {[%clk 0:02:26.9]} 14.
a3 {[%clk 0:01:48.2]} 14... O-O {[%clk 0:02:23.2]} 15. d5 {[%clk 0:01:36.7]}
15... Bxf3 {[%clk 0:02:23]} 16. Nxf3 {[%clk 0:01:32]} 16... Nce5 {[%clk
0:02:20.9]} 17. Nxe5 {[%clk 0:01:30.5]} 17... Nxe5 {[%clk 0:02:17.8]} 18. Be2
{[%clk 0:01:19.1]} 18... Qd6 {[%clk 0:02:13.4]} 19. Rad1 {[%clk 0:01:12.4]}
19... Rab8 {[%clk 0:01:51.3]} 20. a4 {[%clk 0:01:08.7]} 20... Nd7 {[%clk
0:01:47.6]} 21. e4 {[%clk 0:00:58]} 21... Bxb2 {[%clk 0:01:40.6]} 22. Qxb2
{[%clk 0:00:57.9]} 22... Qf6 {[%clk 0:01:38.3]} 23. Qxf6 {[%clk 0:00:53.3]}
23... Nxf6 {[%clk 0:01:39.2]} 24. Bd3 {[%clk 0:00:48.6]} 24... Ng4 {[%clk
0:01:34.2]} 25. Rb1 {[%clk 0:00:39]} 25... Ne5 {[%clk 0:01:10]} 26. Be2 {[%clk
0:00:37.1]} 26... g5 {[%clk 0:01:10.6]} 27. a5 {[%clk 0:00:25.6]} 27... e6
{[%clk 0:01:01]} 28. Rb3 {[%clk 0:00:22.6]} 28... exd5 {[%clk 0:01:00.7]} 29.
exd5 {[%clk 0:00:22.5]} 29... Rfe8 {[%clk 0:00:53.7]} 30. Rfb1 {[%clk
0:00:21.2]} 30... Re7 {[%clk 0:00:53.4]} 31. Bf1 {[%clk 0:00:18.5]} 31... f5
{[%clk 0:00:52]} 32. Rb6 {[%clk 0:00:17.9]} 32... Kf7 {[%clk 0:00:48.9]} 33.
Rxa6 {[%clk 0:00:16.1]} 33... bxa6 {[%clk 0:00:43.3]} 34. Rxb8 {[%clk
0:00:15.9]} 34... Ng4 {[%clk 0:00:39.8]} 35. h3 {[%clk 0:00:13.1]} 35... Nf6
{[%clk 0:00:39.2]} 36. Rb6 {[%clk 0:00:12.4]} 36... Re1 {[%clk 0:00:38.2]} 37.
g3 {[%clk 0:00:11.5]} 37... Ne4 {[%clk 0:00:37.8]} 38. Kg2 {[%clk 0:00:11]}
38... Nd2 {[%clk 0:00:36.3]} 39. Bd3 {[%clk 0:00:10.8]} 39... g4 {[%clk
0:00:35.7]} 40. hxg4 {[%clk 0:00:08.9]} 40... fxg4 {[%clk 0:00:36.6]} 41. Bf5
{[%clk 0:00:08.8]} 41... h5 {[%clk 0:00:36.1]} 42. Bg6+ {[%clk 0:00:07.7]} 42...
Kg7 {[%clk 0:00:36.3]} 43. Bxh5 {[%clk 0:00:08]} 43... Nxc4 {[%clk 0:00:33.9]}
44. Rb7+ {[%clk 0:00:06.9]} 44... Kf6 {[%clk 0:00:34.2]} 45. Bxg4 {[%clk
0:00:07.1]} 45... Nxa5 {[%clk 0:00:31.5]} 46. Rb6+ {[%clk 0:00:06.7]} 46... Kg5
{[%clk 0:00:30.9]} 47. Bf3 {[%clk 0:00:06.9]} 47... Nc4 {[%clk 0:00:28.3]} 48.
Rxa6 {[%clk 0:00:06.8]} 48... Ne5 {[%clk 0:00:26.6]} 49. Re6 {[%clk 0:00:05.9]}
49... c4 {[%clk 0:00:21]} 50. d6 {[%clk 0:00:04.9]} 50... Nxf3 {[%clk 0:00:21]}
51. Rxe1 {[%clk 0:00:01.6]} 51... Nxe1+ {[%clk 0:00:20.8]} 52. Kf1 {[%clk
0:00:01.8]} 52... Kf6 {[%clk 0:00:07.5]} 0-1

[Event "*** SCC Grand Prix: Titled Tuesday Blitz"]
[Site "Chess.com"]
[Date "2020.07.21"]
[Round "1"]
[White "Aemulus20"]
[Black "tk22h"]
[Result "1/2-1/2"]
[WhiteElo "2631"]
[BlackElo "2309"]
[TimeControl "180+1"]
[EndTime "10:08:06 PDT"]
[Termination "Game drawn by repetition"]

1. e4 {[%clk 0:02:58]} 1... e5 {[%clk 0:02:59.4]} 2. Nf3 {[%clk 0:02:57.5]} 2...
Nc6 {[%clk 0:02:58.2]} 3. Bb5 {[%clk 0:02:58]} 3... a6 {[%clk 0:02:57.5]} 4. Ba4
{[%clk 0:02:58.5]} 4... Nf6 {[%clk 0:02:57.2]} 5. O-O {[%clk 0:02:59]} 5... Be7
{[%clk 0:02:57.3]} 6. Re1 {[%clk 0:02:59.6]} 6... b5 {[%clk 0:02:57.4]} 7. Bb3
{[%clk 0:03:00.5]} 7... d6 {[%clk 0:02:57.6]} 8. c3 {[%clk 0:03:01.1]} 8... O-O
{[%clk 0:02:57]} 9. a4 {[%clk 0:03:01.6]} 9... Bd7 {[%clk 0:02:56.1]} 10. d3
{[%clk 0:03:01.1]} 10... h6 {[%clk 0:02:54.1]} 11. Nbd2 {[%clk 0:03:00.6]} 11...
Re8 {[%clk 0:02:54.1]} 12. h3 {[%clk 0:03:00.4]} 12... Bf8 {[%clk 0:02:54.1]}
13. Nf1 {[%clk 0:03:00.9]} 13... Na5 {[%clk 0:02:54.1]} 14. Bc2 {[%clk 0:02:59]}
14... c5 {[%clk 0:02:54.3]} 15. axb5 {[%clk 0:02:59]} 15... axb5 {[%clk
0:02:53.6]} 16. Ng3 {[%clk 0:02:59.2]} 16... Nc6 {[%clk 0:02:53.3]} 17. Rxa8
{[%clk 0:02:57]} 17... Qxa8 {[%clk 0:02:52.4]} 18. Nh4 {[%clk 0:02:56]} 18... g6
{[%clk 0:02:36.6]} 19. Bb3 {[%clk 0:02:48.8]} 19... Be6 {[%clk 0:02:36.1]} 20.
Bxe6 {[%clk 0:02:37.6]} 20... Rxe6 {[%clk 0:02:34.1]} 21. Qb3 {[%clk 0:02:37.3]}
21... Qa4 {[%clk 0:02:28.7]} 22. Qxa4 {[%clk 0:02:26.4]} 22... bxa4 {[%clk
0:02:29.6]} 23. Be3 {[%clk 0:02:20.5]} 23... Re8 {[%clk 0:02:28.9]} 24. Ra1
{[%clk 0:02:20.3]} 24... Rb8 {[%clk 0:02:23.3]} 25. Bc1 {[%clk 0:02:17.8]} 25...
d5 {[%clk 0:02:13.8]} 26. Rxa4 {[%clk 0:02:06]} 26... dxe4 {[%clk 0:02:12.2]}
27. dxe4 {[%clk 0:02:04.4]} 27... Rd8 {[%clk 0:02:11.8]} 28. Be3 {[%clk
0:01:55.2]} 28... Rd1+ {[%clk 0:01:56.6]} 29. Kh2 {[%clk 0:01:54.9]} 29... Rb1
{[%clk 0:01:56.9]} 30. Ra6 {[%clk 0:01:48.1]} 30... Nd8 {[%clk 0:01:34.7]} 31.
Rxf6 {[%clk 0:01:33.1]} 31... Be7 {[%clk 0:01:34.5]} 32. Rb6 {[%clk 0:01:30.1]}
32... Bxh4 {[%clk 0:01:33.3]} 33. Rb8 {[%clk 0:01:28.7]} 33... Kg7 {[%clk
0:01:32.4]} 34. Bxc5 {[%clk 0:01:24.9]} 34... Ne6 {[%clk 0:01:30.6]} 35. Be3
{[%clk 0:01:24.7]} 35... Nf4 {[%clk 0:01:29.8]} 36. c4 {[%clk 0:01:06.6]} 36...
Nd3 {[%clk 0:01:17]} 37. c5 {[%clk 0:01:01.1]} 37... Rxb2 {[%clk 0:01:16.4]} 38.
Rxb2 {[%clk 0:00:48.1]} 38... Nxb2 {[%clk 0:01:17.3]} 39. c6 {[%clk 0:00:37.9]}
39... Bd8 {[%clk 0:01:16.7]} 40. Ne2 {[%clk 0:00:32.5]} 40... Nc4 {[%clk
0:01:08.9]} 41. Bc5 {[%clk 0:00:21.6]} 41... Na5 {[%clk 0:01:05.6]} 42. Bd6
{[%clk 0:00:17.2]} 42... Nxc6 {[%clk 0:01:05.6]} 43. Nc3 {[%clk 0:00:16.8]}
43... Kf6 {[%clk 0:01:04.6]} 44. Nd5+ {[%clk 0:00:16.5]} 44... Ke6 {[%clk
0:01:04.6]} 45. Bc5 {[%clk 0:00:16.8]} 45... f5 {[%clk 0:01:02.6]} 46. f3 {[%clk
0:00:17.1]} 46... Ba5 {[%clk 0:00:59.1]} 47. g4 {[%clk 0:00:15.7]} 47... fxe4
{[%clk 0:00:56.6]} 48. fxe4 {[%clk 0:00:15.4]} 48... Nd4 {[%clk 0:00:56.3]} 49.
Bxd4 {[%clk 0:00:15.3]} 49... exd4 {[%clk 0:00:55.4]} 50. Kg3 {[%clk 0:00:11.5]}
50... Ke5 {[%clk 0:00:55.3]} 51. Kf3 {[%clk 0:00:11.5]} 51... Bd2 {[%clk
0:00:53.6]} 52. Nb6 {[%clk 0:00:10]} 52... Bg5 {[%clk 0:00:51.9]} 53. Nc4+
{[%clk 0:00:09.9]} 53... Ke6 {[%clk 0:00:51.5]} 54. Na5 {[%clk 0:00:07.5]} 54...
d3 {[%clk 0:00:48.9]} 55. Nb3 {[%clk 0:00:04.8]} 55... Ke5 {[%clk 0:00:47]} 56.
Nc5 {[%clk 0:00:02.9]} 56... d2 {[%clk 0:00:44.5]} 57. Nd3+ {[%clk 0:00:03.1]}
57... Kd4 {[%clk 0:00:44.7]} 58. Nf2 {[%clk 0:00:03.1]} 58... h5 {[%clk
0:00:39.8]} 59. gxh5 {[%clk 0:00:02.8]} 59... gxh5 {[%clk 0:00:39.9]} 60. Nd1
{[%clk 0:00:01.1]} 60... Kd3 {[%clk 0:00:37.5]} 61. Nf2+ {[%clk 0:00:01.9]}
61... Kc2 {[%clk 0:00:36.3]} 62. Ke2 {[%clk 0:00:02.8]} 62... Bf4 {[%clk
0:00:30.4]} 63. Nd1 {[%clk 0:00:03.7]} 63... Bg5 {[%clk 0:00:29.3]} 64. Nf2
{[%clk 0:00:04]} 64... Bf4 {[%clk 0:00:29.1]} 65. Nd1 {[%clk 0:00:04.3]} 65...
Bg5 {[%clk 0:00:29.1]} 66. Nf2 {[%clk 0:00:04.2]} 1/2-1/2